[Event "Titled Tuesday Blitz November 01 Early 2022"]
[White "Atabayev, Yusup"]
[Black "Dominguez Perez, Leinier"]
[WhiteFideId "14001128"]
[BlackFideId "3503240"]
[WhiteElo "2454"]
[BlackElo "2647"]
[Result "0-1"]
[Round "04"]
[TimeControl "180+1"]
[Date "2022.11.01"]
[WhiteClock "0:00:12"]
[BlackClock "0:00:06"]

1. e4 {[%clk 0:03:00]}  c5 {[%clk 0:02:59]} 2. b3 {[%clk 0:02:58]}  Nf6 {[%clk 0:02:58]} 3. e5 {[%clk 0:02:58]}  Nd5 {[%clk 0:02:59]} 4. Bb2 {[%clk 0:02:59]}  d6 {[%clk 0:02:59]} 5. exd6 {[%clk 0:02:47]}  Qxd6 {[%clk 0:02:58]} 6. Nf3 {[%clk 0:02:47]}  Nc6 {[%clk 0:02:58]} 7. Bb5 {[%clk 0:02:47]}  Bd7 {[%clk 0:02:52]} 8. Bxc6 {[%clk 0:02:44]}  Bxc6 {[%clk 0:02:52]} 9. O-O {[%clk 0:02:45]}  f6 {[%clk 0:02:43]} 10. d4 {[%clk 0:02:40]}  Nf4 {[%clk 0:02:36]} 11. Re1 {[%clk 0:02:26]}  O-O-O {[%clk 0:02:05]} 12. Na3 {[%clk 0:02:24]}  cxd4 {[%clk 0:02:01]} 13. Qxd4 {[%clk 0:01:50]}  Qxd4 {[%clk 0:01:37]} 14. Nxd4 {[%clk 0:01:49]}  Bd7 {[%clk 0:01:36]} 15. Ne2 {[%clk 0:01:39]}  Nxe2+ {[%clk 0:01:35]} 16. Rxe2 {[%clk 0:01:39]}  e5 {[%clk 0:01:35]} 17. Rd1 {[%clk 0:01:38]}  Bc5 {[%clk 0:01:27]} 18. Red2 {[%clk 0:01:34]}  Bf5 {[%clk 0:01:22]} 19. Kf1 {[%clk 0:01:33]}  h5 {[%clk 0:01:18]} 20. h3 {[%clk 0:01:31]}  Rxd2 {[%clk 0:01:16]} 21. Rxd2 {[%clk 0:01:31]}  Rd8 {[%clk 0:01:16]} 22. Rxd8+ {[%clk 0:01:29]}  Kxd8 {[%clk 0:01:17]} 23. c3 {[%clk 0:01:30]}  Kd7 {[%clk 0:01:16]} 24. Ke2 {[%clk 0:01:27]}  a6 {[%clk 0:01:13]} 25. Nc4 {[%clk 0:01:27]}  b5 {[%clk 0:01:08]} 26. Nd2 {[%clk 0:01:24]}  h4 {[%clk 0:01:04]} 27. b4 {[%clk 0:01:23]}  Be7 {[%clk 0:00:59]} 28. a3 {[%clk 0:01:21]}  Kc6 {[%clk 0:00:56]} 29. c4 {[%clk 0:01:17]}  bxc4 {[%clk 0:00:56]} 30. Nxc4 {[%clk 0:01:18]}  Be6 {[%clk 0:00:56]} 31. Nd2 {[%clk 0:01:12]}  Bd5 {[%clk 0:00:52]} 32. f3 {[%clk 0:01:13]}  Kb5 {[%clk 0:00:40]} 33. Kd3 {[%clk 0:01:12]}  Bd8 {[%clk 0:00:34]} 34. Ne4 {[%clk 0:01:00]}  Kc6 {[%clk 0:00:29]} 35. Nc3 {[%clk 0:00:58]}  Be6 {[%clk 0:00:29]} 36. a4 {[%clk 0:00:58]}  Be7 {[%clk 0:00:25]} 37. b5+ {[%clk 0:00:52]}  axb5 {[%clk 0:00:25]} 38. axb5+ {[%clk 0:00:53]}  Kb6 {[%clk 0:00:23]} 39. Bc1 {[%clk 0:00:54]}  Bb4 {[%clk 0:00:17]} 40. Be3+ {[%clk 0:00:53]}  Ka5 {[%clk 0:00:17]} 41. b6 {[%clk 0:00:53]}  Ka6 {[%clk 0:00:17]} 42. Ne4 {[%clk 0:00:48]}  Bf7 {[%clk 0:00:15]} 43. Bf2 {[%clk 0:00:44]}  Kb7 {[%clk 0:00:13]} 44. Be3 {[%clk 0:00:36]}  Kc6 {[%clk 0:00:13]} 45. Bf2 {[%clk 0:00:35]}  Be7 {[%clk 0:00:12]} 46. Bxh4 {[%clk 0:00:29]}  Kxb6 {[%clk 0:00:13]} 47. g4 {[%clk 0:00:26]}  Kb5 {[%clk 0:00:11]} 48. Nc3+ {[%clk 0:00:26]}  Kc6 {[%clk 0:00:11]} 49. Bf2 {[%clk 0:00:25]}  Bb4 {[%clk 0:00:09]} 50. Ne4 {[%clk 0:00:23]}  Kb5 {[%clk 0:00:08]} 51. Nc3+ {[%clk 0:00:23]}  Kc6 {[%clk 0:00:07]} 52. Ne4 {[%clk 0:00:22]}  Kd5 {[%clk 0:00:07]} 53. h4 {[%clk 0:00:22]}  Be8 {[%clk 0:00:06]} 54. Nc3+ {[%clk 0:00:19]}  Ke6 {[%clk 0:00:07]} 55. h5 {[%clk 0:00:18]}  Bxc3 {[%clk 0:00:05]} 56. Kxc3 {[%clk 0:00:17]}  Bc6 {[%clk 0:00:06]} 57. Be3 {[%clk 0:00:12]}  Bxf3 {[%clk 0:00:06]} 0-1


[Site "https://www.chess.com"]

[Event "Titled Tuesday Blitz November 01 Early 2022"]
[White "Barbashin, Igor"]
[Black "Vasques, Antonio Pedro Freixial"]
[WhiteFideId "4155718"]
[BlackFideId "1908332"]
[WhiteElo "2138"]
[BlackElo "2243"]
[Result "1/2-1/2"]
[Round "04"]
[TimeControl "180+1"]
[Date "2022.11.02"]
[WhiteClock "0:00:28"]
[BlackClock "0:00:06"]

1. d4 {[%clk 0:03:00]}  Nf6 {[%clk 0:02:57]} 2. c4 {[%clk 0:03:00]}  e6 {[%clk 0:02:54]} 3. Nc3 {[%clk 0:02:59]}  d5 {[%clk 0:02:53]} 4. Nf3 {[%clk 0:02:59]}  Be7 {[%clk 0:02:51]} 5. g3 {[%clk 0:02:59]}  O-O {[%clk 0:02:52]} 6. Bg2 {[%clk 0:02:59]}  dxc4 {[%clk 0:02:52]} 7. O-O {[%clk 0:02:59]}  Nc6 {[%clk 0:02:53]} 8. e4 {[%clk 0:02:52]}  a6 {[%clk 0:02:35]} 9. a4 {[%clk 0:02:43]}  Bd7 {[%clk 0:02:22]} 10. d5 {[%clk 0:02:34]}  Nb4 {[%clk 0:02:15]} 11. Ne5 {[%clk 0:02:28]}  exd5 {[%clk 0:01:57]} 12. exd5 {[%clk 0:02:25]}  Bd6 {[%clk 0:01:57]} 13. Nxc4 {[%clk 0:02:23]}  Bf5 {[%clk 0:01:52]} 14. Nxd6 {[%clk 0:02:19]}  Qxd6 {[%clk 0:01:53]} 15. Bf4 {[%clk 0:02:18]}  Qd7 {[%clk 0:01:52]} 16. Rc1 {[%clk 0:02:11]}  Nd3 {[%clk 0:01:51]} 17. Bg5 {[%clk 0:01:55]}  Nxc1 {[%clk 0:01:42]} 18. Bxf6 {[%clk 0:01:53]}  gxf6 {[%clk 0:01:42]} 19. Qxc1 {[%clk 0:01:51]}  Rad8 {[%clk 0:01:42]} 20. Qf4 {[%clk 0:01:44]}  Kg7 {[%clk 0:01:24]} 21. Ne4 {[%clk 0:01:41]}  Rfe8 {[%clk 0:01:00]} 22. Qh4 {[%clk 0:01:27]}  Bxe4 {[%clk 0:00:42]} 23. Bxe4 {[%clk 0:01:28]}  h6 {[%clk 0:00:40]} 24. Qf4 {[%clk 0:01:24]}  Re5 {[%clk 0:00:37]} 25. Rc1 {[%clk 0:01:14]}  Rde8 {[%clk 0:00:32]} 26. Bf3 {[%clk 0:01:12]}  Qh3 {[%clk 0:00:21]} 27. Qd2 {[%clk 0:01:07]}  Qf5 {[%clk 0:00:21]} 28. Kg2 {[%clk 0:01:04]}  R8e7 {[%clk 0:00:19]} 29. Rc4 {[%clk 0:01:01]}  h5 {[%clk 0:00:19]} 30. Rh4 {[%clk 0:00:57]}  Qg6 {[%clk 0:00:15]} 31. Rb4 {[%clk 0:00:50]}  b6 {[%clk 0:00:15]} 32. Rf4 {[%clk 0:00:48]}  a5 {[%clk 0:00:15]} 33. Qd4 {[%clk 0:00:42]}  Qg5 {[%clk 0:00:15]} 34. Rh4 {[%clk 0:00:39]}  Qg6 {[%clk 0:00:14]} 35. Rf4 {[%clk 0:00:38]}  Rd7 {[%clk 0:00:15]} 36. Qc4 {[%clk 0:00:33]}  Qg5 {[%clk 0:00:15]} 37. Rh4 {[%clk 0:00:31]}  Qg6 {[%clk 0:00:15]} 38. Be4 {[%clk 0:00:30]}  Qg5 {[%clk 0:00:13]} 39. Bf3 {[%clk 0:00:29]}  Qg6 {[%clk 0:00:07]} 40. Be4 {[%clk 0:00:28]}  Qg5 {[%clk 0:00:06]} 41. Bf3 {[%clk 0:00:28]} 1/2-1/2


[Site "https://www.chess.com"]

[Event "Titled Tuesday Blitz November 01 Early 2022"]
[White "Bazeev, German"]
[Black "Shankland, Sam"]
[WhiteFideId "24119350"]
[BlackFideId "2004887"]
[WhiteElo "2493"]
[BlackElo "2612"]
[Result "1-0"]
[Round "04"]
[TimeControl "180+1"]
[Date "2022.11.01"]
[WhiteClock "0:01:01"]
[BlackClock "0:01:39"]

1. d4 {[%clk 0:03:00]}  d5 {[%clk 0:02:59]} 2. Nf3 {[%clk 0:03:00]}  Nf6 {[%clk 0:02:58]} 3. c4 {[%clk 0:03:01]}  c6 {[%clk 0:02:58]} 4. Qc2 {[%clk 0:03:00]}  dxc4 {[%clk 0:02:57]} 5. e4 {[%clk 0:03:00]}  b5 {[%clk 0:02:57]} 6. b3 {[%clk 0:03:01]}  cxb3 {[%clk 0:02:56]} 7. axb3 {[%clk 0:03:02]}  Bg4 {[%clk 0:02:57]} 8. Nbd2 {[%clk 0:02:49]}  e6 {[%clk 0:02:55]} 9. Bd3 {[%clk 0:02:46]}  Be7 {[%clk 0:02:45]} 10. O-O {[%clk 0:02:43]}  a5 {[%clk 0:02:44]} 11. h3 {[%clk 0:02:42]}  Bh5 {[%clk 0:02:43]} 12. Bb2 {[%clk 0:02:40]}  Qb6 {[%clk 0:02:39]} 13. d5 {[%clk 0:02:28]}  cxd5 {[%clk 0:02:32]} 14. exd5 {[%clk 0:02:28]}  Nxd5 {[%clk 0:02:33]} 15. Bxg7 {[%clk 0:02:24]}  Rg8 {[%clk 0:02:32]} 16. Bd4 {[%clk 0:02:22]}  Qb7 {[%clk 0:02:22]} 17. Bxh7 {[%clk 0:02:20]}  Rxg2+ {[%clk 0:02:19]} 18. Kxg2 {[%clk 0:02:18]}  Nf4+ {[%clk 0:02:17]} 19. Kh2 {[%clk 0:02:07]}  Bxf3 {[%clk 0:02:17]} 20. Be5 {[%clk 0:01:06]}  Nh5 {[%clk 0:01:39]} 21. Nxf3 {[%clk 0:01:01]} 1-0


[Site "https://www.chess.com"]

[Event "Titled Tuesday Blitz November 01 Early 2022"]
[White "Beerdsen, Thomas"]
[Black "Jobava, Baadur"]
[WhiteFideId "1030108"]
[BlackFideId "13601520"]
[WhiteElo "2567"]
[BlackElo "2582"]
[Result "1/2-1/2"]
[Round "04"]
[TimeControl "180+1"]
[Date "2022.11.01"]
[WhiteClock "0:00:05"]
[BlackClock "0:00:07"]

1. e4 {[%clk 0:03:00]}  e5 {[%clk 0:02:59]} 2. Bc4 {[%clk 0:02:59]}  Nf6 {[%clk 0:02:59]} 3. d3 {[%clk 0:03:00]}  c6 {[%clk 0:02:59]} 4. Nf3 {[%clk 0:03:00]}  d5 {[%clk 0:02:59]} 5. Bb3 {[%clk 0:03:01]}  Bd6 {[%clk 0:03:00]} 6. Nc3 {[%clk 0:03:01]}  d4 {[%clk 0:02:59]} 7. Ne2 {[%clk 0:03:01]}  h6 {[%clk 0:02:59]} 8. c3 {[%clk 0:03:01]}  c5 {[%clk 0:02:59]} 9. h3 {[%clk 0:03:00]}  Nc6 {[%clk 0:02:59]} 10. a4 {[%clk 0:02:59]}  Na5 {[%clk 0:02:51]} 11. Ba2 {[%clk 0:02:58]}  Qe7 {[%clk 0:02:48]} 12. cxd4 {[%clk 0:02:49]}  cxd4 {[%clk 0:02:47]} 13. O-O {[%clk 0:02:50]}  Be6 {[%clk 0:02:46]} 14. Bxe6 {[%clk 0:02:47]}  Qxe6 {[%clk 0:02:47]} 15. Nexd4 {[%clk 0:02:47]}  exd4 {[%clk 0:02:47]} 16. e5 {[%clk 0:02:48]}  Bxe5 {[%clk 0:02:41]} 17. Nxe5 {[%clk 0:02:49]}  O-O {[%clk 0:02:41]} 18. Re1 {[%clk 0:02:44]}  Rfe8 {[%clk 0:02:38]} 19. Bd2 {[%clk 0:02:32]}  Qd5 {[%clk 0:02:29]} 20. Ng4 {[%clk 0:02:03]}  Rxe1+ {[%clk 0:02:14]} 21. Bxe1 {[%clk 0:02:04]}  Nxg4 {[%clk 0:02:13]} 22. Qxg4 {[%clk 0:02:05]}  Nb3 {[%clk 0:02:12]} 23. Rd1 {[%clk 0:02:03]}  Re8 {[%clk 0:02:11]} 24. Bd2 {[%clk 0:01:53]}  h5 {[%clk 0:01:38]} 25. Qg3 {[%clk 0:01:53]}  Nxd2 {[%clk 0:01:33]} 26. Rxd2 {[%clk 0:01:54]}  Qa5 {[%clk 0:01:33]} 27. Qf4 {[%clk 0:01:30]}  Qxa4 {[%clk 0:01:25]} 28. Kh2 {[%clk 0:01:20]}  g6 {[%clk 0:01:17]} 29. g4 {[%clk 0:01:09]}  hxg4 {[%clk 0:01:17]} 30. hxg4 {[%clk 0:01:10]}  Qc6 {[%clk 0:01:02]} 31. Rd1 {[%clk 0:01:07]}  Qc2 {[%clk 0:00:52]} 32. Rc1 {[%clk 0:01:05]}  Qxd3 {[%clk 0:00:51]} 33. Rc7 {[%clk 0:01:06]}  Qb3 {[%clk 0:00:42]} 34. Qxd4 {[%clk 0:01:06]}  a5 {[%clk 0:00:39]} 35. Qd7 {[%clk 0:00:59]}  Rb8 {[%clk 0:00:20]} 36. Qd4 {[%clk 0:00:45]}  b5 {[%clk 0:00:18]} 37. Rc3 {[%clk 0:00:37]}  Qe6 {[%clk 0:00:18]} 38. Rh3 {[%clk 0:00:36]}  f6 {[%clk 0:00:18]} 39. Re3 {[%clk 0:00:37]}  Qc6 {[%clk 0:00:16]} 40. g5 {[%clk 0:00:35]}  Rf8 {[%clk 0:00:14]} 41. gxf6 {[%clk 0:00:32]}  Qxf6 {[%clk 0:00:14]} 42. Qd5+ {[%clk 0:00:32]}  Kg7 {[%clk 0:00:13]} 43. Re2 {[%clk 0:00:14]}  Qf4+ {[%clk 0:00:13]} 44. Kg1 {[%clk 0:00:12]}  Qg4+ {[%clk 0:00:13]} 45. Kf1 {[%clk 0:00:13]}  Qf5 {[%clk 0:00:12]} 46. Qd4+ {[%clk 0:00:11]}  Qf6 {[%clk 0:00:11]} 47. Qd7+ {[%clk 0:00:10]}  Rf7 {[%clk 0:00:11]} 48. Qxb5 {[%clk 0:00:11]}  Qd4 {[%clk 0:00:11]} 49. Qxa5 {[%clk 0:00:10]}  Qd1+ {[%clk 0:00:10]} 50. Qe1 {[%clk 0:00:10]}  Qd5 {[%clk 0:00:10]} 51. Qc3+ {[%clk 0:00:10]}  Kh7 {[%clk 0:00:08]} 52. Qh3+ {[%clk 0:00:09]}  Kg7 {[%clk 0:00:07]} 53. Qc3+ {[%clk 0:00:08]}  Kh7 {[%clk 0:00:08]} 54. Re8 {[%clk 0:00:07]}  Qh1+ {[%clk 0:00:06]} 55. Ke2 {[%clk 0:00:08]}  Qh5+ {[%clk 0:00:07]} 56. Ke1 {[%clk 0:00:06]}  Qh1+ {[%clk 0:00:06]} 57. Ke2 {[%clk 0:00:07]}  Qh5+ {[%clk 0:00:06]} 58. Ke1 {[%clk 0:00:05]}  Qh1+ {[%clk 0:00:07]} 59. Ke2 {[%clk 0:00:05]} 1/2-1/2


[Site "https://www.chess.com"]

[Event "Titled Tuesday Blitz November 01 Early 2022"]
[White "Bilan, Danila"]
[Black "Vifleemskaia, Svetlana"]
[WhiteFideId "24161918"]
[BlackFideId "4129490"]
[WhiteElo "2203"]
[BlackElo "1929"]
[Result "0-1"]
[Round "04"]
[TimeControl "180+1"]
[Date "2022.11.02"]
[WhiteClock "0:00:16"]
[BlackClock "0:00:18"]

1. d4 {[%clk 0:02:59]}  Nf6 {[%clk 0:02:50]} 2. Nf3 {[%clk 0:02:59]}  d5 {[%clk 0:02:45]} 3. c4 {[%clk 0:02:58]}  dxc4 {[%clk 0:02:44]} 4. e3 {[%clk 0:02:53]}  a6 {[%clk 0:02:43]} 5. Bxc4 {[%clk 0:02:53]}  b5 {[%clk 0:02:43]} 6. Be2 {[%clk 0:02:48]}  Bb7 {[%clk 0:02:43]} 7. O-O {[%clk 0:02:45]}  Nbd7 {[%clk 0:02:42]} 8. Nc3 {[%clk 0:02:39]}  e6 {[%clk 0:02:41]} 9. a3 {[%clk 0:02:26]}  c5 {[%clk 0:02:39]} 10. dxc5 {[%clk 0:02:18]}  Nxc5 {[%clk 0:02:33]} 11. b4 {[%clk 0:02:16]}  Qxd1 {[%clk 0:02:30]} 12. Rxd1 {[%clk 0:02:10]}  Nce4 {[%clk 0:02:29]} 13. Bb2 {[%clk 0:02:03]}  Nxc3 {[%clk 0:02:23]} 14. Bxc3 {[%clk 0:02:02]}  Be7 {[%clk 0:02:24]} 15. a4 {[%clk 0:01:45]}  O-O {[%clk 0:02:07]} 16. axb5 {[%clk 0:01:36]}  axb5 {[%clk 0:02:08]} 17. Bxb5 {[%clk 0:01:32]}  Nd5 {[%clk 0:02:03]} 18. Be1 {[%clk 0:01:14]}  Rxa1 {[%clk 0:01:40]} 19. Rxa1 {[%clk 0:01:12]}  Bxb4 {[%clk 0:01:38]} 20. Bxb4 {[%clk 0:00:58]}  Nxb4 {[%clk 0:01:38]} 21. Ra7 {[%clk 0:00:58]}  Bxf3 {[%clk 0:01:31]} 22. gxf3 {[%clk 0:00:58]}  Rb8 {[%clk 0:01:26]} 23. f4 {[%clk 0:00:56]}  g6 {[%clk 0:01:18]} 24. Be2 {[%clk 0:00:54]}  Nd5 {[%clk 0:01:14]} 25. Bf3 {[%clk 0:00:54]}  Rb5 {[%clk 0:01:00]} 26. Kg2 {[%clk 0:00:51]}  Kg7 {[%clk 0:00:57]} 27. Kg3 {[%clk 0:00:50]}  h5 {[%clk 0:00:54]} 28. h3 {[%clk 0:00:42]}  Kf6 {[%clk 0:00:51]} 29. Ra6 {[%clk 0:00:39]}  Rc5 {[%clk 0:00:47]} 30. Ra7 {[%clk 0:00:34]}  Nc3 {[%clk 0:00:41]} 31. Rd7 {[%clk 0:00:28]}  Nb5 {[%clk 0:00:35]} 32. Bd1 {[%clk 0:00:22]}  Rd5 {[%clk 0:00:29]} 33. Bf3 {[%clk 0:00:20]}  Rxd7 {[%clk 0:00:29]} 34. Bc6 {[%clk 0:00:18]}  Rd5 {[%clk 0:00:28]} 35. Bxd5 {[%clk 0:00:18]}  exd5 {[%clk 0:00:28]} 36. f3 {[%clk 0:00:19]}  Nc3 {[%clk 0:00:26]} 37. Kf2 {[%clk 0:00:19]}  Ke6 {[%clk 0:00:25]} 38. Ke1 {[%clk 0:00:19]}  Kd6 {[%clk 0:00:23]} 39. Kd2 {[%clk 0:00:20]}  Nb5 {[%clk 0:00:23]} 40. Kd3 {[%clk 0:00:19]}  Kc5 {[%clk 0:00:24]} 41. e4 {[%clk 0:00:18]}  dxe4+ {[%clk 0:00:22]} 42. fxe4 {[%clk 0:00:19]}  Nd4 {[%clk 0:00:23]} 43. Ke3 {[%clk 0:00:20]}  Kc4 {[%clk 0:00:22]} 44. h4 {[%clk 0:00:15]}  f5 {[%clk 0:00:21]} 45. e5 {[%clk 0:00:13]}  Kd5 {[%clk 0:00:19]} 46. Kd3 {[%clk 0:00:14]}  Ne6 {[%clk 0:00:18]} 47. Ke3 {[%clk 0:00:15]}  Kc5 {[%clk 0:00:17]} 48. Kf3 {[%clk 0:00:16]}  Kd4 {[%clk 0:00:18]} 0-1


[Site "https://www.chess.com"]

[Event "Titled Tuesday Blitz November 01 Early 2022"]
[White "Bogaudinov, Rushan"]
[Black "Sokolovsky, Yahli"]
[WhiteFideId "4129288"]
[BlackFideId "2820242"]
[WhiteElo "1945"]
[BlackElo "2316"]
[Result "0-1"]
[Round "04"]
[TimeControl "180+1"]
[Date "2022.11.02"]
[WhiteClock "0:00:43"]
[BlackClock "0:00:18"]

1. b3 {[%clk 0:03:00]}  d5 {[%clk 0:02:49]} 2. Bb2 {[%clk 0:03:00]}  Bf5 {[%clk 0:02:48]} 3. e3 {[%clk 0:03:00]}  e6 {[%clk 0:02:48]} 4. Nf3 {[%clk 0:03:00]}  Nf6 {[%clk 0:02:48]} 5. Nh4 {[%clk 0:03:00]}  Bg4 {[%clk 0:02:45]} 6. Be2 {[%clk 0:03:00]}  Bxe2 {[%clk 0:02:44]} 7. Qxe2 {[%clk 0:03:00]}  c5 {[%clk 0:02:38]} 8. O-O {[%clk 0:02:59]}  Nc6 {[%clk 0:02:38]} 9. f4 {[%clk 0:02:59]}  Be7 {[%clk 0:02:37]} 10. d3 {[%clk 0:02:58]}  Nd7 {[%clk 0:02:32]} 11. Nf3 {[%clk 0:02:57]}  Bf6 {[%clk 0:02:32]} 12. d4 {[%clk 0:02:53]}  g6 {[%clk 0:02:24]} 13. Nbd2 {[%clk 0:02:50]}  Bg7 {[%clk 0:02:23]} 14. Ne5 {[%clk 0:02:49]}  cxd4 {[%clk 0:02:18]} 15. exd4 {[%clk 0:02:49]}  O-O {[%clk 0:02:17]} 16. Ndf3 {[%clk 0:02:43]}  Nf6 {[%clk 0:02:16]} 17. Ng5 {[%clk 0:02:44]}  h6 {[%clk 0:01:59]} 18. Ngf3 {[%clk 0:02:32]}  Ne4 {[%clk 0:01:58]} 19. c4 {[%clk 0:02:30]}  Kh7 {[%clk 0:01:48]} 20. c5 {[%clk 0:02:22]}  f6 {[%clk 0:01:45]} 21. Ng4 {[%clk 0:02:13]}  Qc7 {[%clk 0:01:30]} 22. g3 {[%clk 0:02:12]}  Rae8 {[%clk 0:01:30]} 23. Nf2 {[%clk 0:02:10]}  f5 {[%clk 0:01:23]} 24. Nd3 {[%clk 0:02:07]}  Bf6 {[%clk 0:01:19]} 25. b4 {[%clk 0:02:07]}  Qg7 {[%clk 0:01:18]} 26. Nfe5 {[%clk 0:02:02]}  Bxe5 {[%clk 0:01:16]} 27. dxe5 {[%clk 0:01:57]}  Qd7 {[%clk 0:01:07]} 28. Bd4 {[%clk 0:01:47]}  Nxd4 {[%clk 0:01:06]} 29. Qb2 {[%clk 0:01:45]}  Nc6 {[%clk 0:01:02]} 30. Rfd1 {[%clk 0:01:40]}  Ne7 {[%clk 0:01:00]} 31. b5 {[%clk 0:01:39]}  Rc8 {[%clk 0:00:58]} 32. Rac1 {[%clk 0:01:38]}  a6 {[%clk 0:00:57]} 33. a4 {[%clk 0:01:38]}  axb5 {[%clk 0:00:56]} 34. axb5 {[%clk 0:01:39]}  Rc7 {[%clk 0:00:54]} 35. Rc2 {[%clk 0:01:33]}  Ra8 {[%clk 0:00:51]} 36. Ra1 {[%clk 0:01:30]}  Rxa1+ {[%clk 0:00:49]} 37. Qxa1 {[%clk 0:01:30]}  Qxb5 {[%clk 0:00:50]} 38. Qa3 {[%clk 0:01:24]}  Nc6 {[%clk 0:00:39]} 39. Rb2 {[%clk 0:01:22]}  Qc4 {[%clk 0:00:38]} 40. Kg2 {[%clk 0:01:13]}  Nd4 {[%clk 0:00:33]} 41. c6 {[%clk 0:01:09]}  Nxc6 {[%clk 0:00:29]} 42. Ne1 {[%clk 0:00:58]}  Nc3 {[%clk 0:00:27]} 43. Qf8 {[%clk 0:00:56]}  Qe4+ {[%clk 0:00:25]} 44. Kf1 {[%clk 0:00:51]}  Qh1+ {[%clk 0:00:21]} 45. Kf2 {[%clk 0:00:51]}  Nd1+ {[%clk 0:00:21]} 46. Ke2 {[%clk 0:00:49]}  Nxb2 {[%clk 0:00:20]} 47. Qd6 {[%clk 0:00:47]}  Rg7 {[%clk 0:00:18]} 48. Nf3 {[%clk 0:00:44]}  Qg2+ {[%clk 0:00:17]} 49. Ke3 {[%clk 0:00:43]}  Nc4+ {[%clk 0:00:18]} 0-1


[Site "https://www.chess.com"]